[Event "Titled Tuesday Blitz April 4 Late 2023"]
[White "Kirillov, Dmitry"]
[Black "Vaglio Munoz, Jaime"]
[WhiteFideId "34180572"]
[BlackFideId "6500145"]
[WhiteElo "2111"]
[BlackElo "2199"]
[Result "1-0"]
[Round "07"]
[TimeControl "180+2"]
[Date "2023.04.04"]
[WhiteClock "0:00:19"]
[BlackClock "0:00:16"]

1. d4 {[%clk 0:03:00]}  c6 {[%clk 0:02:59]} 2. e4 {[%clk 0:02:58]}  d5 {[%clk 0:02:58]} 3. Nc3 {[%clk 0:02:58]}  g6 {[%clk 0:02:56]} 4. Nf3 {[%clk 0:02:44]}  Bg4 {[%clk 0:02:55]} 5. Be2 {[%clk 0:02:43]}  Bg7 {[%clk 0:02:52]} 6. e5 {[%clk 0:02:42]}  e6 {[%clk 0:02:49]} 7. Be3 {[%clk 0:02:41]}  h5 {[%clk 0:02:49]} 8. h3 {[%clk 0:02:38]}  Bxf3 {[%clk 0:02:48]} 9. Bxf3 {[%clk 0:02:39]}  Nh6 {[%clk 0:02:48]} 10. g4 {[%clk 0:02:38]}  Qh4 {[%clk 0:02:41]} 11. Qd2 {[%clk 0:02:30]}  Qe7 {[%clk 0:02:12]} 12. gxh5 {[%clk 0:02:26]}  Nf5 {[%clk 0:02:11]} 13. hxg6 {[%clk 0:02:24]}  fxg6 {[%clk 0:02:10]} 14. Bg4 {[%clk 0:02:20]}  Nd7 {[%clk 0:02:04]} 15. Rg1 {[%clk 0:02:09]}  Nxe3 {[%clk 0:01:49]} 16. Qxe3 {[%clk 0:02:02]}  O-O-O {[%clk 0:01:43]} 17. Qd3 {[%clk 0:01:59]}  Nf8 {[%clk 0:01:39]} 18. O-O-O {[%clk 0:01:55]}  Bh6+ {[%clk 0:01:38]} 19. Kb1 {[%clk 0:01:55]}  Bf4 {[%clk 0:01:37]} 20. Ne2 {[%clk 0:01:49]}  Bg5 {[%clk 0:01:35]} 21. c4 {[%clk 0:01:48]}  Kb8 {[%clk 0:01:34]} 22. c5 {[%clk 0:01:47]}  Bh4 {[%clk 0:01:25]} 23. f4 {[%clk 0:01:37]}  Ka8 {[%clk 0:01:15]} 24. Qb3 {[%clk 0:01:33]}  Rb8 {[%clk 0:01:15]} 25. Qa4 {[%clk 0:01:32]}  b6 {[%clk 0:00:54]} 26. Qxc6+ {[%clk 0:01:30]}  Qb7 {[%clk 0:00:51]} 27. Qxb7+ {[%clk 0:01:24]}  Kxb7 {[%clk 0:00:52]} 28. Rc1 {[%clk 0:01:19]}  b5 {[%clk 0:00:50]} 29. Bxe6 {[%clk 0:00:51]}  Nxe6 {[%clk 0:00:42]} 30. Rxg6 {[%clk 0:00:51]}  Nc7 {[%clk 0:00:41]} 31. f5 {[%clk 0:00:45]}  Bf2 {[%clk 0:00:37]} 32. Rh1 {[%clk 0:00:43]}  Rh4 {[%clk 0:00:35]} 33. Rg4 {[%clk 0:00:31]}  Rh5 {[%clk 0:00:20]} 34. Rf4 {[%clk 0:00:25]}  Bh4 {[%clk 0:00:18]} 35. Rg1 {[%clk 0:00:18]}  Rf8 {[%clk 0:00:18]} 36. f6 {[%clk 0:00:15]}  Ne6 {[%clk 0:00:18]} 37. Rfg4 {[%clk 0:00:15]}  Rf5 {[%clk 0:00:17]} 38. Rxh4 {[%clk 0:00:14]}  Rf2 {[%clk 0:00:17]} 39. Nc3 {[%clk 0:00:12]}  b4 {[%clk 0:00:17]} 40. Nxd5 {[%clk 0:00:12]}  Nxd4 {[%clk 0:00:17]} 41. Rh7+ {[%clk 0:00:09]}  Kc6 {[%clk 0:00:17]} 42. Nxb4+ {[%clk 0:00:10]}  Kb5 {[%clk 0:00:17]} 43. Rb7+ {[%clk 0:00:08]}  Kxc5 {[%clk 0:00:17]} 44. Nd3+ {[%clk 0:00:08]}  Kc6 {[%clk 0:00:17]} 45. Nxf2 {[%clk 0:00:07]}  Kxb7 {[%clk 0:00:17]} 46. Ne4 {[%clk 0:00:07]}  Ne6 {[%clk 0:00:16]} 47. Nd6+ {[%clk 0:00:07]}  Kc6 {[%clk 0:00:16]} 48. Rc1+ {[%clk 0:00:08]}  Kd5 {[%clk 0:00:16]} 49. Re1 {[%clk 0:00:08]}  Rh8 {[%clk 0:00:14]} 50. Re3 {[%clk 0:00:06]}  Rf8 {[%clk 0:00:13]} 51. b3 {[%clk 0:00:05]}  Kd4 {[%clk 0:00:14]} 52. Re1 {[%clk 0:00:05]}  Kd5 {[%clk 0:00:13]} 53. Kc2 {[%clk 0:00:04]}  Rb8 {[%clk 0:00:11]} 54. Nc4 {[%clk 0:00:04]}  Rc8 {[%clk 0:00:11]} 55. Rd1+ {[%clk 0:00:04]}  Ke4 {[%clk 0:00:11]} 56. Kb2 {[%clk 0:00:05]}  Kf5 {[%clk 0:00:11]} 57. Nd6+ {[%clk 0:00:05]}  Kxe5 {[%clk 0:00:11]} 58. Nxc8 {[%clk 0:00:06]}  Kxf6 {[%clk 0:00:11]} 59. Rd6 {[%clk 0:00:05]}  Ke5 {[%clk 0:00:10]} 60. Rxe6+ {[%clk 0:00:06]}  Kxe6 {[%clk 0:00:11]} 61. Nxa7 {[%clk 0:00:07]}  Kd5 {[%clk 0:00:11]} 62. Nb5 {[%clk 0:00:07]}  Kc6 {[%clk 0:00:12]} 63. Nc3 {[%clk 0:00:08]}  Kc5 {[%clk 0:00:12]} 64. h4 {[%clk 0:00:09]}  Kd4 {[%clk 0:00:13]} 65. h5 {[%clk 0:00:10]}  Ke5 {[%clk 0:00:13]} 66. h6 {[%clk 0:00:11]}  Kf6 {[%clk 0:00:14]} 67. h7 {[%clk 0:00:11]}  Kg7 {[%clk 0:00:15]} 68. a4 {[%clk 0:00:12]}  Kxh7 {[%clk 0:00:15]} 69. a5 {[%clk 0:00:13]}  Kg7 {[%clk 0:00:16]} 70. a6 {[%clk 0:00:14]}  Kf7 {[%clk 0:00:17]} 71. a7 {[%clk 0:00:15]}  Ke6 {[%clk 0:00:18]} 72. a8=Q {[%clk 0:00:16]}  Ke5 {[%clk 0:00:18]} 73. Qd5+ {[%clk 0:00:17]}  Kf4 {[%clk 0:00:18]} 74. Kc2 {[%clk 0:00:17]}  Ke3 {[%clk 0:00:19]} 75. Qe4+ {[%clk 0:00:17]}  Kf2 {[%clk 0:00:18]} 76. Kd2 {[%clk 0:00:18]}  Kg3 {[%clk 0:00:18]} 77. Ke2 {[%clk 0:00:18]}  Kh3 {[%clk 0:00:16]} 78. Kf2 {[%clk 0:00:18]}  Kh2 {[%clk 0:00:16]} 79. Qh4# {[%clk 0:00:19]} 1-0


[Site "https://www.chess.com"]

[Event "Titled Tuesday Blitz April 4 Late 2023"]
[White "Novikova, Galina"]
[Black "Mazurkiewicz, Michal"]
[WhiteFideId "4157095"]
[BlackFideId "1124943"]
[WhiteElo "1953"]
[BlackElo "2054"]
[Result "1-0"]
[Round "07"]
[TimeControl "180+2"]
[Date "2023.04.04"]
[WhiteClock "0:00:45"]
[BlackClock "0:00:05"]

1. e4 {[%clk 0:03:00]}  d6 {[%clk 0:02:59]} 2. d4 {[%clk 0:03:00]}  Nf6 {[%clk 0:02:59]} 3. Nc3 {[%clk 0:03:01]}  c6 {[%clk 0:02:59]} 4. f3 {[%clk 0:03:01]}  e5 {[%clk 0:02:59]} 5. Be3 {[%clk 0:03:02]}  Be7 {[%clk 0:02:59]} 6. Qd2 {[%clk 0:03:02]}  O-O {[%clk 0:03:00]} 7. O-O-O {[%clk 0:03:03]}  b5 {[%clk 0:03:00]} 8. g4 {[%clk 0:03:03]}  b4 {[%clk 0:03:00]} 9. Nce2 {[%clk 0:03:04]}  a5 {[%clk 0:02:58]} 10. h4 {[%clk 0:03:03]}  Nfd7 {[%clk 0:02:58]} 11. g5 {[%clk 0:03:00]}  Nb6 {[%clk 0:02:56]} 12. Ng3 {[%clk 0:02:58]}  Re8 {[%clk 0:02:53]} 13. Nf5 {[%clk 0:02:55]}  Bf8 {[%clk 0:02:51]} 14. dxe5 {[%clk 0:02:54]}  Bxf5 {[%clk 0:02:41]} 15. exf5 {[%clk 0:02:25]}  Nd5 {[%clk 0:02:29]} 16. f4 {[%clk 0:02:05]}  dxe5 {[%clk 0:02:10]} 17. fxe5 {[%clk 0:02:05]}  Rxe5 {[%clk 0:02:10]} 18. Bd4 {[%clk 0:01:57]}  Rxf5 {[%clk 0:01:34]} 19. Bd3 {[%clk 0:01:56]}  Rf4 {[%clk 0:01:34]} 20. Be3 {[%clk 0:01:43]}  Bd6 {[%clk 0:01:28]} 21. Kb1 {[%clk 0:01:33]}  Nxe3 {[%clk 0:01:17]} 22. Qxe3 {[%clk 0:01:34]}  Qe7 {[%clk 0:01:17]} 23. Qh3 {[%clk 0:01:13]}  Nd7 {[%clk 0:01:11]} 24. Ne2 {[%clk 0:01:12]}  Rf2 {[%clk 0:00:56]} 25. Nd4 {[%clk 0:01:12]}  Ne5 {[%clk 0:00:52]} 26. Be4 {[%clk 0:01:12]}  g6 {[%clk 0:00:37]} 27. h5 {[%clk 0:01:08]}  a4 {[%clk 0:00:22]} 28. hxg6 {[%clk 0:01:08]}  fxg6 {[%clk 0:00:22]} 29. Nxc6 {[%clk 0:00:58]}  Nxc6 {[%clk 0:00:22]} 30. Bxc6 {[%clk 0:00:58]}  Rc8 {[%clk 0:00:20]} 31. Bd5+ {[%clk 0:00:59]}  Kh8 {[%clk 0:00:19]} 32. Qxc8+ {[%clk 0:00:58]}  Rf8 {[%clk 0:00:13]} 33. Qe6 {[%clk 0:00:55]}  Qg7 {[%clk 0:00:12]} 34. Qxd6 {[%clk 0:00:49]}  a3 {[%clk 0:00:12]} 35. Rxh7+ {[%clk 0:00:46]}  Kxh7 {[%clk 0:00:06]} 36. Rh1+ {[%clk 0:00:45]}  Qh6 {[%clk 0:00:05]} 37. Rxh6+ {[%clk 0:00:45]}  Kg7 {[%clk 0:00:05]} 38. Qxf8+ {[%clk 0:00:45]} 1-0


[Site "https://www.chess.com"]

[Event "Titled Tuesday Blitz April 4 Late 2023"]
[White "Tsyhanchuk, Stanislav"]
[Black "Pein, Jonathan"]
[WhiteFideId "13505130"]
[BlackFideId "417092"]
[WhiteElo "2173"]
[BlackElo "2151"]
[Result "1-0"]
[Round "07"]
[TimeControl "180+2"]
[Date "2023.04.04"]
[WhiteClock "0:01:19"]
[BlackClock "0:00:05"]

1. c4 {[%clk 0:03:00]}  Nc6 {[%clk 0:02:55]} 2. Nc3 {[%clk 0:03:00]}  Nf6 {[%clk 0:02:54]} 3. g3 {[%clk 0:02:47]}  d5 {[%clk 0:02:48]} 4. cxd5 {[%clk 0:02:46]}  Nxd5 {[%clk 0:02:49]} 5. Bg2 {[%clk 0:02:46]}  Nb6 {[%clk 0:02:45]} 6. e4 {[%clk 0:02:45]}  g6 {[%clk 0:02:44]} 7. Nge2 {[%clk 0:02:45]}  Bg7 {[%clk 0:02:45]} 8. O-O {[%clk 0:02:45]}  O-O {[%clk 0:02:44]} 9. f4 {[%clk 0:02:44]}  Nd4 {[%clk 0:02:42]} 10. d3 {[%clk 0:02:42]}  Bg4 {[%clk 0:02:42]} 11. h3 {[%clk 0:02:39]}  Nxe2+ {[%clk 0:02:32]} 12. Nxe2 {[%clk 0:02:40]}  Bxe2 {[%clk 0:02:33]} 13. Qxe2 {[%clk 0:02:40]}  Qd4+ {[%clk 0:02:34]} 14. Be3 {[%clk 0:02:39]}  Qxb2 {[%clk 0:02:33]} 15. Qxb2 {[%clk 0:02:33]}  Bxb2 {[%clk 0:02:33]} 16. Rab1 {[%clk 0:02:30]}  Bg7 {[%clk 0:02:30]} 17. Rfc1 {[%clk 0:02:30]}  c6 {[%clk 0:02:18]} 18. e5 {[%clk 0:02:28]}  f6 {[%clk 0:01:55]} 19. d4 {[%clk 0:02:25]}  Rfd8 {[%clk 0:01:41]} 20. Kf2 {[%clk 0:02:23]}  Kf7 {[%clk 0:01:22]} 21. a4 {[%clk 0:02:19]}  Nxa4 {[%clk 0:00:54]} 22. Rxb7 {[%clk 0:02:19]}  Rab8 {[%clk 0:00:40]} 23. Rxa7 {[%clk 0:02:15]}  Nb2 {[%clk 0:00:40]} 24. Rxc6 {[%clk 0:02:09]}  fxe5 {[%clk 0:00:32]} 25. Rcc7 {[%clk 0:02:00]}  Bf8 {[%clk 0:00:16]} 26. fxe5 {[%clk 0:01:48]}  Nd3+ {[%clk 0:00:16]} 27. Ke2 {[%clk 0:01:45]}  Rb2+ {[%clk 0:00:12]} 28. Kxd3 {[%clk 0:01:45]}  Rxg2 {[%clk 0:00:12]} 29. g4 {[%clk 0:01:41]}  Rg3 {[%clk 0:00:11]} 30. Ke4 {[%clk 0:01:40]}  Rxh3 {[%clk 0:00:11]} 31. Bg5 {[%clk 0:01:40]}  Re8 {[%clk 0:00:06]} 32. d5 {[%clk 0:01:40]}  h6 {[%clk 0:00:06]} 33. Bxe7 {[%clk 0:01:38]}  Bxe7 {[%clk 0:00:06]} 34. d6 {[%clk 0:01:37]}  Rh4 {[%clk 0:00:05]} 35. Rxe7+ {[%clk 0:01:35]}  Rxe7 {[%clk 0:00:06]} 36. Rxe7+ {[%clk 0:01:36]}  Kf8 {[%clk 0:00:07]} 37. Kd5 {[%clk 0:01:30]}  Rxg4 {[%clk 0:00:07]} 38. Ke6 {[%clk 0:01:30]}  Rg1 {[%clk 0:00:05]} 39. d7 {[%clk 0:01:27]}  Rd1 {[%clk 0:00:05]} 40. Re8+ {[%clk 0:01:27]}  Kg7 {[%clk 0:00:05]} 41. d8=Q {[%clk 0:01:27]}  Rxd8 {[%clk 0:00:06]} 42. Rxd8 {[%clk 0:01:28]}  h5 {[%clk 0:00:07]} 43. Kd5 {[%clk 0:01:24]}  g5 {[%clk 0:00:07]} 44. Rd7+ {[%clk 0:01:23]}  Kg6 {[%clk 0:00:05]} 45. e6 {[%clk 0:01:23]}  h4 {[%clk 0:00:04]} 46. Rf7 {[%clk 0:01:23]}  h3 {[%clk 0:00:04]} 47. Rf2 {[%clk 0:01:22]}  g4 {[%clk 0:00:03]} 48. e7 {[%clk 0:01:20]}  g3 {[%clk 0:00:04]} 49. e8=Q+ {[%clk 0:01:20]}  Kg5 {[%clk 0:00:05]} 50. Qg8+ {[%clk 0:01:19]} 1-0


[Site "https://www.chess.com"]

[Event "Titled Tuesday Blitz April 4 Late 2023"]
[White "Liu, Casper"]
[Black "lluiss"]
[WhiteFideId "1454153"]
[WhiteElo "2221"]
[BlackElo "2265"]
[Result "1-0"]
[Round "07"]
[TimeControl "180+2"]
[Date "2023.04.04"]
[WhiteClock "0:01:01"]
[BlackClock "0:00:42"]

1. d4 {[%clk 0:02:57]}  Nf6 {[%clk 0:02:56]} 2. c4 {[%clk 0:02:57]}  g6 {[%clk 0:02:56]} 3. Nc3 {[%clk 0:02:58]}  d5 {[%clk 0:02:56]} 4. cxd5 {[%clk 0:02:57]}  Nxd5 {[%clk 0:02:57]} 5. e4 {[%clk 0:02:58]}  Nxc3 {[%clk 0:02:57]} 6. bxc3 {[%clk 0:02:59]}  Bg7 {[%clk 0:02:58]} 7. Kd2 {[%clk 0:02:55]}  c5 {[%clk 0:02:54]} 8. d5 {[%clk 0:02:50]}  e6 {[%clk 0:02:52]} 9. Kc2 {[%clk 0:02:38]}  exd5 {[%clk 0:02:46]} 10. Bb5+ {[%clk 0:02:32]}  Bd7 {[%clk 0:02:34]} 11. Bxd7+ {[%clk 0:02:32]}  Qxd7 {[%clk 0:02:34]} 12. Qxd5 {[%clk 0:02:33]}  Qxd5 {[%clk 0:02:31]} 13. exd5 {[%clk 0:02:33]}  O-O {[%clk 0:02:20]} 14. Nf3 {[%clk 0:02:29]}  Nd7 {[%clk 0:02:19]} 15. Bf4 {[%clk 0:02:24]}  Nb6 {[%clk 0:02:18]} 16. Rad1 {[%clk 0:02:12]}  Rfd8 {[%clk 0:02:17]} 17. d6 {[%clk 0:02:08]}  Na4 {[%clk 0:01:51]} 18. d7 {[%clk 0:02:02]}  Nxc3 {[%clk 0:01:48]} 19. Rd3 {[%clk 0:02:01]}  Nb5 {[%clk 0:01:43]} 20. Rd5 {[%clk 0:01:46]}  Nd4+ {[%clk 0:01:22]} 21. Nxd4 {[%clk 0:01:46]}  Bxd4 {[%clk 0:01:21]} 22. Bc7 {[%clk 0:01:42]}  Kf8 {[%clk 0:01:13]} 23. Re1 {[%clk 0:01:37]}  Bxf2 {[%clk 0:01:07]} 24. Re2 {[%clk 0:01:32]}  Bd4 {[%clk 0:01:06]} 25. Bd6+ {[%clk 0:01:28]}  Kg8 {[%clk 0:01:03]} 26. Be7 {[%clk 0:01:29]}  Kg7 {[%clk 0:00:52]} 27. Rd6 {[%clk 0:01:01]}  b6 {[%clk 0:00:42]} 28. Bxd8 {[%clk 0:01:00]}  Rxd8 {[%clk 0:00:42]} 29. Re8 {[%clk 0:01:01]} 1-0


[Site "https://www.chess.com"]

[Event "Titled Tuesday Blitz April 4 Late 2023"]
[White "ArchibaldCerveza29"]
[Black "Svicevic, Rastko"]
[BlackFideId "916315"]
[WhiteElo "2418"]
[BlackElo "2071"]
[Result "1-0"]
[Round "07"]
[TimeControl "180+2"]
[Date "2023.04.04"]
[WhiteClock "0:01:58"]
[BlackClock "0:00:01"]

1. e4 {[%clk 0:03:00]}  c6 {[%clk 0:03:00]} 2. d4 {[%clk 0:02:59]}  d5 {[%clk 0:03:01]} 3. exd5 {[%clk 0:02:59]}  cxd5 {[%clk 0:03:01]} 4. c4 {[%clk 0:03:00]}  Nf6 {[%clk 0:03:00]} 5. Nc3 {[%clk 0:03:00]}  Nc6 {[%clk 0:03:00]} 6. Nf3 {[%clk 0:03:01]}  Be6 {[%clk 0:03:00]} 7. c5 {[%clk 0:03:01]}  g6 {[%clk 0:02:41]} 8. Bb5 {[%clk 0:03:00]}  Bg7 {[%clk 0:02:31]} 9. Ne5 {[%clk 0:02:56]}  Rc8 {[%clk 0:01:44]} 10. Bf4 {[%clk 0:02:48]}  O-O {[%clk 0:01:43]} 11. Nxc6 {[%clk 0:02:47]}  bxc6 {[%clk 0:01:42]} 12. Ba6 {[%clk 0:02:48]}  Rb8 {[%clk 0:00:49]} 13. Bxb8 {[%clk 0:02:47]}  Qxb8 {[%clk 0:00:50]} 14. Qb3 {[%clk 0:02:46]}  Ng4 {[%clk 0:00:35]} 15. h3 {[%clk 0:02:34]}  Nh6 {[%clk 0:00:11]} 16. Qxb8 {[%clk 0:02:33]}  Rxb8 {[%clk 0:00:11]} 17. O-O-O {[%clk 0:02:33]}  Nf5 {[%clk 0:00:12]} 18. Ne2 {[%clk 0:02:33]}  h5 {[%clk 0:00:11]} 19. g4 {[%clk 0:02:30]}  Nh4 {[%clk 0:00:03]} 20. Nf4 {[%clk 0:02:28]}  Bd7 {[%clk 0:00:01]} 21. gxh5 {[%clk 0:02:23]}  g5 {[%clk 0:00:01]} 22. Ne2 {[%clk 0:02:17]}  Nf3 {[%clk 0:00:02]} 23. a3 {[%clk 0:02:04]}  Kh7 {[%clk 0:00:02]} 24. b4 {[%clk 0:02:02]}  Kh6 {[%clk 0:00:02]} 25. Rd3 {[%clk 0:02:00]}  Nh4 {[%clk 0:00:01]} 26. Ng3 {[%clk 0:01:58]} 1-0


[Site "https://www.chess.com"]

[Event "Titled Tuesday Blitz April 4 Late 2023"]
[White "Senft, Sean"]
[Black "Baruch, Liam"]
[WhiteFideId "2044960"]
[BlackFideId "14322064"]
[WhiteElo "1989"]
[BlackElo "2168"]
[Result "0-1"]
[Round "07"]
[TimeControl "180+2"]
[Date "2023.04.04"]
[WhiteClock "0:02:34"]
[BlackClock "0:01:22"]

1. d4 {[%clk 0:02:50]}  d5 {[%clk 0:03:00]} 2. c4 {[%clk 0:02:51]}  e6 {[%clk 0:03:01]} 3. Nc3 {[%clk 0:02:51]}  Nf6 {[%clk 0:03:01]} 4. cxd5 {[%clk 0:02:52]}  exd5 {[%clk 0:03:01]} 5. Nf3 {[%clk 0:02:53]}  Be7 {[%clk 0:03:01]} 6. Bg5 {[%clk 0:02:53]}  c6 {[%clk 0:03:02]} 7. e3 {[%clk 0:02:54]}  O-O {[%clk 0:03:03]} 8. Bd3 {[%clk 0:02:55]}  Nbd7 {[%clk 0:03:03]} 9. O-O {[%clk 0:02:55]}  Re8 {[%clk 0:03:04]} 10. Ne5 {[%clk 0:02:55]}  Nxe5 {[%clk 0:02:55]} 11. dxe5 {[%clk 0:02:56]}  Nd7 {[%clk 0:02:52]} 12. Bf4 {[%clk 0:02:54]}  h6 {[%clk 0:02:41]} 13. Bg3 {[%clk 0:02:52]}  Bc5 {[%clk 0:02:40]} 14. Kh1 {[%clk 0:02:51]}  Nxe5 {[%clk 0:02:39]} 15. Bc2 {[%clk 0:02:51]}  Bg4 {[%clk 0:02:26]} 16. f3 {[%clk 0:02:51]}  Bh5 {[%clk 0:02:13]} 17. Ne2 {[%clk 0:02:48]}  Bxe3 {[%clk 0:02:05]} 18. Bxe5 {[%clk 0:02:49]}  Rxe5 {[%clk 0:02:05]} 19. Qd3 {[%clk 0:02:49]}  Bg6 {[%clk 0:02:05]} 20. Qc3 {[%clk 0:02:48]}  d4 {[%clk 0:02:02]} 21. Qb3 {[%clk 0:02:46]}  Rb5 {[%clk 0:01:49]} 22. Qa4 {[%clk 0:02:45]}  d3 {[%clk 0:01:44]} 23. Rfd1 {[%clk 0:02:40]}  Rd5 {[%clk 0:01:38]} 24. Bb3 {[%clk 0:02:36]}  dxe2 {[%clk 0:01:27]} 25. Re1 {[%clk 0:02:36]}  Rd4 {[%clk 0:01:23]} 26. Qa5 {[%clk 0:02:34]}  Qxa5 {[%clk 0:01:22]} 0-1


[Site "https://www.chess.com"]

[Event "Titled Tuesday Blitz April 4 Late 2023"]
[White "Manu_ChessExcelsior"]
[Black "Skaric, Djuro"]
[BlackFideId "934569"]
[WhiteElo "2150"]
[BlackElo "2282"]
[Result "0-1"]
[Round "07"]
[TimeControl "180+2"]
[Date "2023.04.04"]
[WhiteClock "0:00:02"]
[BlackClock "0:00:05"]

1. e4 {[%clk 0:03:00]}  d6 {[%clk 0:03:00]} 2. g3 {[%clk 0:02:56]}  g6 {[%clk 0:03:00]} 3. Bg2 {[%clk 0:02:56]}  Bg7 {[%clk 0:03:01]} 4. d3 {[%clk 0:02:56]}  Nf6 {[%clk 0:03:01]} 5. f4 {[%clk 0:02:57]}  O-O {[%clk 0:03:02]} 6. Nf3 {[%clk 0:02:57]}  Nc6 {[%clk 0:03:02]} 7. O-O {[%clk 0:02:57]}  e5 {[%clk 0:03:02]} 8. f5 {[%clk 0:02:50]}  gxf5 {[%clk 0:03:02]} 9. Nh4 {[%clk 0:02:50]}  f4 {[%clk 0:02:57]} 10. gxf4 {[%clk 0:02:25]}  Bg4 {[%clk 0:02:45]} 11. Qe1 {[%clk 0:02:08]}  Nh5 {[%clk 0:02:32]} 12. f5 {[%clk 0:01:58]}  Nd4 {[%clk 0:02:23]} 13. Na3 {[%clk 0:01:54]}  Bf6 {[%clk 0:02:17]} 14. Nf3 {[%clk 0:01:47]}  Nxf3+ {[%clk 0:02:14]} 15. Bxf3 {[%clk 0:01:48]}  Bh4 {[%clk 0:02:08]} 16. Qe2 {[%clk 0:01:43]}  Bxf3 {[%clk 0:01:37]} 17. Rxf3 {[%clk 0:01:37]}  Kh8 {[%clk 0:01:33]} 18. Kh1 {[%clk 0:01:33]}  Rg8 {[%clk 0:01:32]} 19. Be3 {[%clk 0:01:30]}  a6 {[%clk 0:01:18]} 20. Raf1 {[%clk 0:01:24]}  Qf6 {[%clk 0:01:16]} 21. c3 {[%clk 0:01:11]}  Rg4 {[%clk 0:01:15]} 22. Nc2 {[%clk 0:00:40]}  Rag8 {[%clk 0:01:07]} 23. Ne1 {[%clk 0:00:31]}  Bxe1 {[%clk 0:00:54]} 24. Rxe1 {[%clk 0:00:25]}  Qh4 {[%clk 0:00:51]} 25. Bf2 {[%clk 0:00:12]}  Qg5 {[%clk 0:00:36]} 26. Qf1 {[%clk 0:00:10]}  Rg2 {[%clk 0:00:19]} 27. Be3 {[%clk 0:00:09]}  Nf4 {[%clk 0:00:19]} 28. Rf2 {[%clk 0:00:09]}  Qg4 {[%clk 0:00:17]} 29. Rxg2 {[%clk 0:00:08]}  Nxg2 {[%clk 0:00:17]} 30. Re2 {[%clk 0:00:07]}  Nxe3 {[%clk 0:00:12]} 31. Rxe3 {[%clk 0:00:07]}  Qh4 {[%clk 0:00:10]} 32. Re2 {[%clk 0:00:06]}  h5 {[%clk 0:00:10]} 33. Rg2 {[%clk 0:00:07]}  Rg4 {[%clk 0:00:10]} 34. Rxg4 {[%clk 0:00:06]}  Qxg4 {[%clk 0:00:11]} 35. Qg2 {[%clk 0:00:06]}  Qd1+ {[%clk 0:00:10]} 36. Qg1 {[%clk 0:00:04]}  Qxd3 {[%clk 0:00:10]} 37. Qg2 {[%clk 0:00:05]}  Qd1+ {[%clk 0:00:09]} 38. Qg1 {[%clk 0:00:05]}  Qd3 {[%clk 0:00:09]} 39. Qg2 {[%clk 0:00:05]}  Qb1+ {[%clk 0:00:09]} 40. Qg1 {[%clk 0:00:05]}  Qxe4+ {[%clk 0:00:10]} 41. Qg2 {[%clk 0:00:05]}  Qxg2+ {[%clk 0:00:10]} 42. Kxg2 {[%clk 0:00:05]}  Kg7 {[%clk 0:00:11]} 43. Kf3 {[%clk 0:00:06]}  Kf6 {[%clk 0:00:11]} 44. Ke4 {[%clk 0:00:06]}  c6 {[%clk 0:00:11]} 45. c4 {[%clk 0:00:06]}  Kg5 {[%clk 0:00:12]} 46. b4 {[%clk 0:00:06]}  Kg4 {[%clk 0:00:11]} 47. a4 {[%clk 0:00:06]}  c5 {[%clk 0:00:09]} 48. bxc5 {[%clk 0:00:05]}  dxc5 {[%clk 0:00:09]} 49. Kxe5 {[%clk 0:00:05]}  Kg5 {[%clk 0:00:08]} 50. h3 {[%clk 0:00:03]}  f6+ {[%clk 0:00:05]} 51. Ke6 {[%clk 0:00:03]}  b6 {[%clk 0:00:05]} 52. h4+ {[%clk 0:00:01]}  Kxh4 {[%clk 0:00:05]} 53. Kxf6 {[%clk 0:00:02]}  Kg3 {[%clk 0:00:04]} 54. Ke5 {[%clk 0:00:01]}  h4 {[%clk 0:00:05]} 55. f6 {[%clk 0:00:02]}  h3 {[%clk 0:00:06]} 56. f7 {[%clk 0:00:03]}  h2 {[%clk 0:00:07]} 57. f8=Q {[%clk 0:00:03]}  h1=Q {[%clk 0:00:08]} 58. Qg7+ {[%clk 0:00:03]}  Kf2 {[%clk 0:00:07]} 59. Qf6+ {[%clk 0:00:03]}  Ke2 {[%clk 0:00:07]} 60. Qf4 {[%clk 0:00:02]}  Kd3 {[%clk 0:00:05]} 0-1


[Site "https://www.chess.com"]

[Event "Titled Tuesday Blitz April 4 Late 2023"]
[White "Porat, Tori"]
[Black "Buchenau, Frank"]
[WhiteFideId "30982626"]
[BlackFideId "4604350"]
[WhiteElo "1752"]
[BlackElo "2157"]
[Result "0-1"]
[Round "07"]
[TimeControl "180+2"]
[Date "2023.04.04"]
[WhiteClock "0:00:47"]
[BlackClock "0:01:08"]

1. d4 {[%clk 0:03:00]}  g6 {[%clk 0:02:59]} 2. c4 {[%clk 0:03:00]}  Bg7 {[%clk 0:02:59]} 3. Nc3 {[%clk 0:03:01]}  Nf6 {[%clk 0:02:59]} 4. Nf3 {[%clk 0:03:01]}  d6 {[%clk 0:02:59]} 5. e4 {[%clk 0:02:56]}  O-O {[%clk 0:02:58]} 6. Be3 {[%clk 0:02:55]}  Nbd7 {[%clk 0:02:38]} 7. Be2 {[%clk 0:02:54]}  e5 {[%clk 0:02:37]} 8. d5 {[%clk 0:02:51]}  Nc5 {[%clk 0:02:35]} 9. Bxc5 {[%clk 0:02:45]}  dxc5 {[%clk 0:02:34]} 10. Nxe5 {[%clk 0:02:42]}  Nxe4 {[%clk 0:02:30]} 11. Nxe4 {[%clk 0:02:39]}  Bxe5 {[%clk 0:02:29]} 12. Rb1 {[%clk 0:02:37]}  Bf5 {[%clk 0:02:27]} 13. Bd3 {[%clk 0:02:34]}  Bxe4 {[%clk 0:02:19]} 14. Bxe4 {[%clk 0:02:33]}  Re8 {[%clk 0:02:11]} 15. Qc2 {[%clk 0:02:02]}  Qh4 {[%clk 0:01:53]} 16. h3 {[%clk 0:01:51]}  Bd4 {[%clk 0:01:49]} 17. O-O {[%clk 0:01:38]}  Qxe4 {[%clk 0:01:48]} 18. Qd2 {[%clk 0:01:37]}  Qe2 {[%clk 0:01:46]} 19. Qf4 {[%clk 0:01:36]}  Re7 {[%clk 0:01:39]} 20. b4 {[%clk 0:01:34]}  b6 {[%clk 0:01:33]} 21. bxc5 {[%clk 0:01:32]}  Bxc5 {[%clk 0:01:32]} 22. a4 {[%clk 0:01:31]}  Rae8 {[%clk 0:01:31]} 23. a5 {[%clk 0:01:29]}  Bd6 {[%clk 0:01:28]} 24. Qd4 {[%clk 0:01:22]}  Re4 {[%clk 0:01:27]} 25. Qf6 {[%clk 0:01:14]}  Qxc4 {[%clk 0:01:25]} 26. axb6 {[%clk 0:01:14]}  axb6 {[%clk 0:01:25]} 27. Rbd1 {[%clk 0:01:10]}  b5 {[%clk 0:01:18]} 28. Qf3 {[%clk 0:01:05]}  b4 {[%clk 0:01:15]} 29. g3 {[%clk 0:00:55]}  b3 {[%clk 0:01:13]} 30. Rd3 {[%clk 0:00:52]}  b2 {[%clk 0:01:12]} 31. Rb3 {[%clk 0:00:50]}  Re1 {[%clk 0:01:09]} 32. Rxe1 {[%clk 0:00:48]}  Rxe1+ {[%clk 0:01:08]} 33. Kg2 {[%clk 0:00:47]}  Qf1+ {[%clk 0:01:08]} 0-1


[Site "https://www.chess.com"]